[Event "Titled Tuesday Blitz December 06 Late 2022"]
[White "Bok, Benjamin"]
[Black "Santos Flores, Alberto"]
[WhiteFideId "1017063"]
[BlackFideId "3601234"]
[WhiteElo "2658"]
[BlackElo "2235"]
[Result "1-0"]
[Round "03"]
[TimeControl "180+1"]
[Date "2022.12.07"]
[WhiteClock "0:01:35"]
[BlackClock "0:00:28"]

1. d4 {[%clk 0:03:00]}  d5 {[%clk 0:02:51]} 2. c4 {[%clk 0:03:01]}  c6 {[%clk 0:02:51]} 3. Nf3 {[%clk 0:03:01]}  Nf6 {[%clk 0:02:50]} 4. cxd5 {[%clk 0:03:01]}  cxd5 {[%clk 0:02:51]} 5. Nc3 {[%clk 0:03:02]}  Nc6 {[%clk 0:02:49]} 6. Bf4 {[%clk 0:03:02]}  a6 {[%clk 0:02:49]} 7. Rc1 {[%clk 0:03:02]}  Bf5 {[%clk 0:02:49]} 8. e3 {[%clk 0:03:03]}  e6 {[%clk 0:02:49]} 9. Qb3 {[%clk 0:03:03]}  Ra7 {[%clk 0:02:40]} 10. Be2 {[%clk 0:02:52]}  Be7 {[%clk 0:02:40]} 11. O-O {[%clk 0:02:52]}  Nh5 {[%clk 0:02:37]} 12. Be5 {[%clk 0:02:46]}  f6 {[%clk 0:02:28]} 13. Bg3 {[%clk 0:02:36]}  Nxg3 {[%clk 0:02:27]} 14. hxg3 {[%clk 0:02:37]}  O-O {[%clk 0:02:25]} 15. Na4 {[%clk 0:02:36]}  Na5 {[%clk 0:02:15]} 16. Qb6 {[%clk 0:02:34]}  Qxb6 {[%clk 0:02:10]} 17. Nxb6 {[%clk 0:02:35]}  Bd8 {[%clk 0:02:01]} 18. Nc8 {[%clk 0:02:06]}  Ra8 {[%clk 0:02:00]} 19. Nd6 {[%clk 0:02:07]}  Bg6 {[%clk 0:01:44]} 20. b4 {[%clk 0:02:05]}  Nc6 {[%clk 0:01:43]} 21. a3 {[%clk 0:01:58]}  Rb8 {[%clk 0:00:42]} 22. Nxb7 {[%clk 0:01:57]}  Rxb7 {[%clk 0:00:35]} 23. Rxc6 {[%clk 0:01:58]}  a5 {[%clk 0:00:36]} 24. bxa5 {[%clk 0:01:58]}  Bxa5 {[%clk 0:00:34]} 25. Rxe6 {[%clk 0:01:58]}  Ra7 {[%clk 0:00:33]} 26. Ra6 {[%clk 0:01:56]}  Rxa6 {[%clk 0:00:31]} 27. Bxa6 {[%clk 0:01:57]}  Bf7 {[%clk 0:00:32]} 28. Rc1 {[%clk 0:01:55]}  Ra8 {[%clk 0:00:32]} 29. Bb7 {[%clk 0:01:42]}  Ra7 {[%clk 0:00:32]} 30. Rc8+ {[%clk 0:01:41]}  Be8 {[%clk 0:00:28]} 31. Rxe8+ {[%clk 0:01:40]}  Kf7 {[%clk 0:00:28]} 32. Ra8 {[%clk 0:01:35]} 1-0


[Site "https://www.chess.com"]

[Event "Titled Tuesday Blitz December 06 Late 2022"]
[White "Boyer, Mahel"]
[Black "Eljanov, Pavel"]
[WhiteFideId "45102422"]
[BlackFideId "14102951"]
[WhiteElo "2455"]
[BlackElo "2598"]
[Result "0-1"]
[Round "03"]
[TimeControl "180+1"]
[Date "2022.12.06"]
[WhiteClock "0:00:05"]
[BlackClock "0:00:17"]

1. e4 {[%clk 0:03:00]}  c6 {[%clk 0:02:54]} 2. c4 {[%clk 0:03:00]}  d5 {[%clk 0:02:54]} 3. cxd5 {[%clk 0:03:01]}  cxd5 {[%clk 0:02:55]} 4. exd5 {[%clk 0:03:02]}  Nf6 {[%clk 0:02:55]} 5. Nc3 {[%clk 0:03:02]}  Nxd5 {[%clk 0:02:54]} 6. Nf3 {[%clk 0:03:03]}  Nc6 {[%clk 0:02:50]} 7. Bb5 {[%clk 0:03:03]}  g6 {[%clk 0:02:50]} 8. Qa4 {[%clk 0:03:03]}  Nb6 {[%clk 0:02:48]} 9. Bxc6+ {[%clk 0:03:03]}  bxc6 {[%clk 0:02:48]} 10. Qxc6+ {[%clk 0:03:04]}  Bd7 {[%clk 0:02:49]} 11. Qe4 {[%clk 0:03:05]}  Bg7 {[%clk 0:02:46]} 12. O-O {[%clk 0:03:05]}  Rc8 {[%clk 0:02:44]} 13. d4 {[%clk 0:02:39]}  Bc6 {[%clk 0:02:44]} 14. d5 {[%clk 0:02:22]}  Bxd5 {[%clk 0:02:30]} 15. Nxd5 {[%clk 0:02:19]}  Qxd5 {[%clk 0:02:31]} 16. Qh4 {[%clk 0:02:03]}  Rc4 {[%clk 0:02:18]} 17. Qh3 {[%clk 0:01:22]}  Qf5 {[%clk 0:01:50]} 18. Qxf5 {[%clk 0:01:04]}  gxf5 {[%clk 0:01:51]} 19. Be3 {[%clk 0:01:04]}  Bxb2 {[%clk 0:01:43]} 20. Rab1 {[%clk 0:01:04]}  Bf6 {[%clk 0:01:30]} 21. Rb5 {[%clk 0:00:44]}  f4 {[%clk 0:01:23]} 22. Bxb6 {[%clk 0:00:41]}  axb6 {[%clk 0:01:24]} 23. Rxb6 {[%clk 0:00:42]}  O-O {[%clk 0:01:24]} 24. Ra6 {[%clk 0:00:40]}  Rb8 {[%clk 0:01:17]} 25. Nd2 {[%clk 0:00:39]}  Rc2 {[%clk 0:01:06]} 26. Nb3 {[%clk 0:00:38]}  e6 {[%clk 0:00:52]} 27. Ra4 {[%clk 0:00:38]}  Be5 {[%clk 0:00:47]} 28. Re1 {[%clk 0:00:35]}  Rb5 {[%clk 0:00:47]} 29. g3 {[%clk 0:00:24]}  Rd5 {[%clk 0:00:31]} 30. gxf4 {[%clk 0:00:22]}  Bc7 {[%clk 0:00:32]} 31. Rd4 {[%clk 0:00:18]}  Rxd4 {[%clk 0:00:29]} 32. Nxd4 {[%clk 0:00:19]}  Rxa2 {[%clk 0:00:30]} 33. f5 {[%clk 0:00:19]}  Bb6 {[%clk 0:00:30]} 34. fxe6 {[%clk 0:00:20]}  fxe6 {[%clk 0:00:29]} 35. Re4 {[%clk 0:00:18]}  Ra4 {[%clk 0:00:25]} 36. Rxe6 {[%clk 0:00:07]}  Bxd4 {[%clk 0:00:25]} 37. Kg2 {[%clk 0:00:04]}  Ra2 {[%clk 0:00:24]} 38. Re4 {[%clk 0:00:01]}  Rxf2+ {[%clk 0:00:22]} 39. Kg3 {[%clk 0:00:01]}  Rd2 {[%clk 0:00:23]} 40. Rg4+ {[%clk 0:00:01]}  Kf7 {[%clk 0:00:23]} 41. Rf4+ {[%clk 0:00:02]}  Bf6 {[%clk 0:00:22]} 42. Rf3 {[%clk 0:00:01]}  Kg6 {[%clk 0:00:21]} 43. h3 {[%clk 0:00:01]}  h5 {[%clk 0:00:21]} 44. Kf4 {[%clk 0:00:02]}  Rd4+ {[%clk 0:00:19]} 45. Ke3 {[%clk 0:00:01]}  Ra4 {[%clk 0:00:19]} 46. Kf2 {[%clk 0:00:02]}  Bh4+ {[%clk 0:00:18]} 47. Kg2 {[%clk 0:00:02]}  Ra2+ {[%clk 0:00:19]} 48. Kg1 {[%clk 0:00:03]}  Bf6 {[%clk 0:00:18]} 49. Kh1 {[%clk 0:00:02]}  Be5 {[%clk 0:00:17]} 50. Kg1 {[%clk 0:00:02]}  Kg5 {[%clk 0:00:16]} 51. Kf1 {[%clk 0:00:01]}  h4 {[%clk 0:00:16]} 52. Kg1 {[%clk 0:00:02]}  Bg3 {[%clk 0:00:16]} 53. Kf1 {[%clk 0:00:03]}  Rh2 {[%clk 0:00:16]} 54. Kg1 {[%clk 0:00:02]}  Rxh3 {[%clk 0:00:16]} 55. Rb3 {[%clk 0:00:02]}  Rh2 {[%clk 0:00:16]} 56. Rb5+ {[%clk 0:00:03]}  Kg4 {[%clk 0:00:17]} 57. Rb4+ {[%clk 0:00:01]}  Kh3 {[%clk 0:00:17]} 58. Rb3 {[%clk 0:00:02]}  Rg2+ {[%clk 0:00:16]} 59. Kh1 {[%clk 0:00:02]}  Rh2+ {[%clk 0:00:16]} 60. Kg1 {[%clk 0:00:02]}  Rc2 {[%clk 0:00:17]} 61. Rf3 {[%clk 0:00:02]}  Rc1+ {[%clk 0:00:16]} 62. Rf1 {[%clk 0:00:02]}  Bh2+ {[%clk 0:00:15]} 63. Kf2 {[%clk 0:00:02]}  Rxf1+ {[%clk 0:00:16]} 64. Kxf1 {[%clk 0:00:03]}  Kg3 {[%clk 0:00:16]} 65. Ke1 {[%clk 0:00:03]}  Kg2 {[%clk 0:00:17]} 66. Ke2 {[%clk 0:00:04]}  h3 {[%clk 0:00:17]} 67. Ke1 {[%clk 0:00:05]}  Bg1 {[%clk 0:00:17]} 68. Ke2 {[%clk 0:00:05]}  h2 {[%clk 0:00:17]} 0-1


[Site "https://www.chess.com"]

[Event "Titled Tuesday Blitz December 06 Late 2022"]
[White "Chigaev, Maksim"]
[Black "Averjanov, Alexey"]
[WhiteFideId "4108116"]
[BlackFideId "14109867"]
[WhiteElo "2542"]
[BlackElo "2663"]
[Result "1/2-1/2"]
[Round "03"]
[TimeControl "180+1"]
[Date "2022.12.06"]
[WhiteClock "0:00:11"]
[BlackClock "0:00:26"]

1. Nf3 {[%clk 0:02:59]}  c5 {[%clk 0:02:57]} 2. c4 {[%clk 0:02:59]}  Nc6 {[%clk 0:02:57]} 3. Nc3 {[%clk 0:02:59]}  g6 {[%clk 0:02:57]} 4. g3 {[%clk 0:02:58]}  Bg7 {[%clk 0:02:56]} 5. Bg2 {[%clk 0:02:59]}  e6 {[%clk 0:02:56]} 6. d4 {[%clk 0:02:57]}  cxd4 {[%clk 0:02:55]} 7. Nb5 {[%clk 0:02:57]}  d5 {[%clk 0:02:55]} 8. cxd5 {[%clk 0:02:53]}  exd5 {[%clk 0:02:55]} 9. Nbxd4 {[%clk 0:02:53]}  Nge7 {[%clk 0:02:55]} 10. O-O {[%clk 0:02:54]}  O-O {[%clk 0:02:54]} 11. Bg5 {[%clk 0:02:47]}  h6 {[%clk 0:02:53]} 12. Bf4 {[%clk 0:02:47]}  Nf5 {[%clk 0:02:49]} 13. Nxc6 {[%clk 0:02:46]}  bxc6 {[%clk 0:02:49]} 14. Be5 {[%clk 0:02:46]}  Bxe5 {[%clk 0:02:36]} 15. Nxe5 {[%clk 0:02:47]}  Qf6 {[%clk 0:02:36]} 16. Nd3 {[%clk 0:02:46]}  Ba6 {[%clk 0:02:36]} 17. Nc5 {[%clk 0:02:38]}  Bc8 {[%clk 0:02:29]} 18. b3 {[%clk 0:02:37]}  Re8 {[%clk 0:02:28]} 19. e3 {[%clk 0:02:09]}  Nd6 {[%clk 0:02:24]} 20. Rc1 {[%clk 0:02:07]}  h5 {[%clk 0:02:24]} 21. h4 {[%clk 0:02:07]}  Bg4 {[%clk 0:02:23]} 22. Qd2 {[%clk 0:02:01]}  Bf3 {[%clk 0:02:19]} 23. Nd7 {[%clk 0:01:47]}  Qe7 {[%clk 0:02:18]} 24. Bxf3 {[%clk 0:01:46]}  Qxd7 {[%clk 0:02:18]} 25. Qc2 {[%clk 0:01:37]}  Rec8 {[%clk 0:02:16]} 26. Rfd1 {[%clk 0:01:38]}  Qe6 {[%clk 0:02:10]} 27. Kg2 {[%clk 0:01:37]}  a5 {[%clk 0:02:10]} 28. Qc5 {[%clk 0:01:27]}  a4 {[%clk 0:02:05]} 29. b4 {[%clk 0:01:20]}  a3 {[%clk 0:02:05]} 30. Qd4 {[%clk 0:01:09]}  Rab8 {[%clk 0:01:58]} 31. Rc5 {[%clk 0:01:04]}  Ne4 {[%clk 0:01:36]} 32. Bxe4 {[%clk 0:00:41]}  dxe4 {[%clk 0:01:36]} 33. Qc4 {[%clk 0:00:39]}  Qf6 {[%clk 0:01:31]} 34. Qxe4 {[%clk 0:00:35]}  Qb2 {[%clk 0:01:28]} 35. Rc2 {[%clk 0:00:24]}  Qxb4 {[%clk 0:01:27]} 36. Qxb4 {[%clk 0:00:22]}  Rxb4 {[%clk 0:01:27]} 37. Rd3 {[%clk 0:00:19]}  Ra8 {[%clk 0:01:18]} 38. Rdc3 {[%clk 0:00:13]}  Rb2 {[%clk 0:01:13]} 39. Rxc6 {[%clk 0:00:13]}  Rab8 {[%clk 0:01:13]} 40. e4 {[%clk 0:00:09]}  Rxc2 {[%clk 0:01:13]} 41. Rxc2 {[%clk 0:00:10]}  Rb2 {[%clk 0:01:13]} 42. Rc8+ {[%clk 0:00:11]}  Kg7 {[%clk 0:01:13]} 43. Ra8 {[%clk 0:00:11]}  Rxa2 {[%clk 0:01:13]} 44. Ra7 {[%clk 0:00:11]}  Kf6 {[%clk 0:01:12]} 45. Kf3 {[%clk 0:00:12]}  Ra1 {[%clk 0:01:11]} 46. Kf4 {[%clk 0:00:13]}  a2 {[%clk 0:01:11]} 47. f3 {[%clk 0:00:13]}  Ke6 {[%clk 0:01:11]} 48. Ra6+ {[%clk 0:00:13]}  Ke7 {[%clk 0:01:10]} 49. Ra7+ {[%clk 0:00:09]}  Ke6 {[%clk 0:01:10]} 50. Ra6+ {[%clk 0:00:10]}  Ke7 {[%clk 0:01:10]} 51. e5 {[%clk 0:00:10]}  Kf8 {[%clk 0:01:03]} 52. Ra8+ {[%clk 0:00:10]}  Ke7 {[%clk 0:01:03]} 53. Ra7+ {[%clk 0:00:11]}  Ke6 {[%clk 0:01:03]} 54. Ra5 {[%clk 0:00:10]}  Ke7 {[%clk 0:00:57]} 55. Ra8 {[%clk 0:00:11]}  Ke6 {[%clk 0:00:57]} 56. Ra7 {[%clk 0:00:11]}  Rb1 {[%clk 0:00:53]} 57. Ra6+ {[%clk 0:00:10]}  Kd5 {[%clk 0:00:53]} 58. Rxa2 {[%clk 0:00:11]}  Rb4+ {[%clk 0:00:52]} 59. Kg5 {[%clk 0:00:11]}  Kxe5 {[%clk 0:00:53]} 60. Re2+ {[%clk 0:00:12]}  Kd6 {[%clk 0:00:51]} 61. Kf6 {[%clk 0:00:12]}  Rb3 {[%clk 0:00:38]} 62. Rf2 {[%clk 0:00:12]}  Rb7 {[%clk 0:00:37]} 63. Rd2+ {[%clk 0:00:13]}  Kc5 {[%clk 0:00:36]} 64. f4 {[%clk 0:00:13]}  Rb3 {[%clk 0:00:33]} 65. Rg2 {[%clk 0:00:11]}  Rb7 {[%clk 0:00:33]} 66. Re2 {[%clk 0:00:07]}  Rb3 {[%clk 0:00:31]} 67. Rg2 {[%clk 0:00:06]}  Rb7 {[%clk 0:00:30]} 68. f5 {[%clk 0:00:06]}  gxf5 {[%clk 0:00:28]} 69. Kxf5 {[%clk 0:00:07]}  Kd4 {[%clk 0:00:28]} 70. Kg5 {[%clk 0:00:06]}  Rb5+ {[%clk 0:00:28]} 71. Kf6 {[%clk 0:00:07]}  Ke3 {[%clk 0:00:28]} 72. Kxf7 {[%clk 0:00:07]}  Kf3 {[%clk 0:00:28]} 73. Rg1 {[%clk 0:00:07]}  Kf2 {[%clk 0:00:29]} 74. Ra1 {[%clk 0:00:05]}  Kxg3 {[%clk 0:00:29]} 75. Ra4 {[%clk 0:00:06]}  Rb6 {[%clk 0:00:26]} 76. Kg7 {[%clk 0:00:06]}  Kh3 {[%clk 0:00:26]} 77. Kh7 {[%clk 0:00:07]}  Kg3 {[%clk 0:00:26]} 78. Kg7 {[%clk 0:00:07]}  Rc6 {[%clk 0:00:27]} 79. Kh7 {[%clk 0:00:08]}  Rd6 {[%clk 0:00:27]} 80. Kg7 {[%clk 0:00:08]}  Re6 {[%clk 0:00:26]} 81. Kf7 {[%clk 0:00:09]}  Rc6 {[%clk 0:00:26]} 82. Kg7 {[%clk 0:00:09]}  Rb6 {[%clk 0:00:26]} 83. Kf7 {[%clk 0:00:09]}  Rc6 {[%clk 0:00:27]} 84. Kg7 {[%clk 0:00:10]}  Rd6 {[%clk 0:00:27]} 85. Kf7 {[%clk 0:00:11]}  Rc6 {[%clk 0:00:26]} 1/2-1/2


[Site "https://www.chess.com"]

[Event "Titled Tuesday Blitz December 06 Late 2022"]
[White "Corrales Jimenez, Fidel"]
[Black "Andreikin, Dmitry"]
[WhiteFideId "3506690"]
[BlackFideId "4158814"]
[WhiteElo "2541"]
[BlackElo "2735"]
[Result "0-1"]
[Round "03"]
[TimeControl "180+1"]
[Date "2022.12.06"]
[WhiteClock "0:00:36"]
[BlackClock "0:00:09"]

1. e4 {[%clk 0:02:18]}  c5 {[%clk 0:02:55]} 2. Nf3 {[%clk 0:02:15]}  Nc6 {[%clk 0:02:55]} 3. d4 {[%clk 0:02:14]}  cxd4 {[%clk 0:02:55]} 4. Nxd4 {[%clk 0:02:15]}  Qb6 {[%clk 0:02:55]} 5. Nb3 {[%clk 0:02:14]}  e6 {[%clk 0:02:55]} 6. Nc3 {[%clk 0:02:14]}  Qc7 {[%clk 0:02:56]} 7. Bd2 {[%clk 0:02:13]}  a6 {[%clk 0:02:41]} 8. a4 {[%clk 0:02:12]}  Nf6 {[%clk 0:02:38]} 9. Bd3 {[%clk 0:02:09]}  Bd6 {[%clk 0:02:36]} 10. h3 {[%clk 0:02:09]}  O-O {[%clk 0:02:30]} 11. O-O {[%clk 0:02:09]}  Bf4 {[%clk 0:02:05]} 12. Re1 {[%clk 0:02:04]}  b6 {[%clk 0:01:57]} 13. Bf1 {[%clk 0:02:03]}  Bb7 {[%clk 0:01:51]} 14. Bxf4 {[%clk 0:02:00]}  Qxf4 {[%clk 0:01:51]} 15. Nd4 {[%clk 0:01:56]}  Rfc8 {[%clk 0:01:44]} 16. Nxc6 {[%clk 0:01:55]}  Bxc6 {[%clk 0:01:41]} 17. e5 {[%clk 0:01:54]}  Nd5 {[%clk 0:01:37]} 18. Nxd5 {[%clk 0:01:45]}  Bxd5 {[%clk 0:01:38]} 19. Ra3 {[%clk 0:01:44]}  Qb4 {[%clk 0:01:35]} 20. c4 {[%clk 0:01:15]}  Bxc4 {[%clk 0:01:25]} 21. Bxc4 {[%clk 0:01:05]}  Rxc4 {[%clk 0:01:23]} 22. Rg3 {[%clk 0:01:05]}  Rac8 {[%clk 0:01:14]} 23. b3 {[%clk 0:01:05]}  Rd4 {[%clk 0:01:02]} 24. Qe2 {[%clk 0:01:03]}  g6 {[%clk 0:01:01]} 25. Rd1 {[%clk 0:01:01]}  a5 {[%clk 0:00:39]} 26. Rxd4 {[%clk 0:00:58]}  Qxd4 {[%clk 0:00:39]} 27. Rd3 {[%clk 0:00:59]}  Qf4 {[%clk 0:00:27]} 28. g3 {[%clk 0:00:58]}  Qc1+ {[%clk 0:00:26]} 29. Kg2 {[%clk 0:00:58]}  Qc6+ {[%clk 0:00:25]} 30. Qf3 {[%clk 0:00:57]}  Qxf3+ {[%clk 0:00:22]} 31. Kxf3 {[%clk 0:00:58]}  Kf8 {[%clk 0:00:22]} 32. Rd6 {[%clk 0:00:58]}  Rc3+ {[%clk 0:00:22]} 33. Kf4 {[%clk 0:00:55]}  Rxb3 {[%clk 0:00:21]} 34. Kg5 {[%clk 0:00:45]}  Kg7 {[%clk 0:00:19]} 35. h4 {[%clk 0:00:41]}  h6+ {[%clk 0:00:17]} 36. Kg4 {[%clk 0:00:40]}  h5+ {[%clk 0:00:14]} 37. Kh3 {[%clk 0:00:39]}  Rb4 {[%clk 0:00:13]} 38. f4 {[%clk 0:00:39]}  Rxa4 {[%clk 0:00:11]} 39. Rxb6 {[%clk 0:00:40]}  Rd4 {[%clk 0:00:11]} 40. Ra6 {[%clk 0:00:40]}  a4 {[%clk 0:00:11]} 41. Ra7 {[%clk 0:00:40]}  Kf8 {[%clk 0:00:11]} 42. Kg2 {[%clk 0:00:40]}  Ke7 {[%clk 0:00:11]} 43. Kf3 {[%clk 0:00:41]}  Rd3+ {[%clk 0:00:11]} 44. Kf2 {[%clk 0:00:40]}  a3 {[%clk 0:00:11]} 45. Ra6 {[%clk 0:00:41]}  Rb3 {[%clk 0:00:11]} 46. Ra7 {[%clk 0:00:41]}  Rb2+ {[%clk 0:00:11]} 47. Kf3 {[%clk 0:00:40]}  a2 {[%clk 0:00:12]} 48. Ke3 {[%clk 0:00:40]}  Kd8 {[%clk 0:00:11]} 49. Kd4 {[%clk 0:00:41]}  Rg2 {[%clk 0:00:10]} 50. Kc5 {[%clk 0:00:39]}  Ke7 {[%clk 0:00:10]} 51. Kb6 {[%clk 0:00:37]}  Rxg3 {[%clk 0:00:10]} 52. Rxa2 {[%clk 0:00:38]}  Rg4 {[%clk 0:00:10]} 53. Ra4 {[%clk 0:00:38]}  Rxh4 {[%clk 0:00:10]} 54. Kc5 {[%clk 0:00:36]}  g5 {[%clk 0:00:09]} 0-1


[Site "https://www.chess.com"]

[Event "Titled Tuesday Blitz December 06 Late 2022"]
[White "Da Silva Junior, Sediney Mari"]
[Black "Danielyan, Vahe"]
[WhiteFideId "2132079"]
[BlackFideId "13304828"]
[WhiteElo "1996"]
[BlackElo "2423"]
[Result "0-1"]
[Round "03"]
[TimeControl "180+1"]
[Date "2022.12.07"]
[WhiteClock "0:01:00"]
[BlackClock "0:00:16"]

1. e4 {[%clk 0:03:00]}  d6 {[%clk 0:03:00]} 2. d4 {[%clk 0:03:00]}  Nf6 {[%clk 0:03:00]} 3. Nc3 {[%clk 0:03:00]}  e5 {[%clk 0:03:01]} 4. dxe5 {[%clk 0:03:00]}  dxe5 {[%clk 0:03:02]} 5. Qxd8+ {[%clk 0:03:00]}  Kxd8 {[%clk 0:03:02]} 6. Bg5 {[%clk 0:03:00]}  Be6 {[%clk 0:03:02]} 7. O-O-O+ {[%clk 0:03:01]}  Nd7 {[%clk 0:03:02]} 8. f4 {[%clk 0:03:02]}  exf4 {[%clk 0:03:02]} 9. Nf3 {[%clk 0:02:43]}  h6 {[%clk 0:03:02]} 10. Bxf4 {[%clk 0:02:41]}  c6 {[%clk 0:03:01]} 11. Ne5 {[%clk 0:02:40]}  Ke8 {[%clk 0:02:56]} 12. Nxd7 {[%clk 0:02:38]}  Nxd7 {[%clk 0:02:57]} 13. a3 {[%clk 0:02:35]}  b5 {[%clk 0:02:54]} 14. Be2 {[%clk 0:02:33]}  g5 {[%clk 0:02:54]} 15. Be3 {[%clk 0:02:32]}  Bg7 {[%clk 0:02:54]} 16. h4 {[%clk 0:02:31]}  g4 {[%clk 0:02:54]} 17. Rd6 {[%clk 0:02:29]}  Rc8 {[%clk 0:02:41]} 18. Bxa7 {[%clk 0:02:28]}  Be5 {[%clk 0:02:38]} 19. Rd3 {[%clk 0:02:25]}  h5 {[%clk 0:02:38]} 20. Rhd1 {[%clk 0:02:22]}  Nf6 {[%clk 0:02:29]} 21. Bd4 {[%clk 0:02:20]}  Nd7 {[%clk 0:02:15]} 22. Bxe5 {[%clk 0:02:18]}  Nxe5 {[%clk 0:02:16]} 23. Rd6 {[%clk 0:02:17]}  Ke7 {[%clk 0:02:17]} 24. b3 {[%clk 0:02:16]}  g3 {[%clk 0:02:12]} 25. R6d4 {[%clk 0:02:14]}  Bg4 {[%clk 0:02:11]} 26. Kb2 {[%clk 0:02:12]}  Rhg8 {[%clk 0:02:10]} 27. a4 {[%clk 0:02:05]}  bxa4 {[%clk 0:02:10]} 28. Rxa4 {[%clk 0:02:05]}  Rc7 {[%clk 0:02:02]} 29. Ra5 {[%clk 0:01:56]}  f6 {[%clk 0:02:01]} 30. Rd4 {[%clk 0:01:50]}  Bxe2 {[%clk 0:01:57]} 31. Nxe2 {[%clk 0:01:49]}  Rg4 {[%clk 0:01:58]} 32. Rda4 {[%clk 0:01:46]}  Kf7 {[%clk 0:01:50]} 33. Kc3 {[%clk 0:01:44]}  Kg6 {[%clk 0:01:50]} 34. Ra8 {[%clk 0:01:42]}  Rxh4 {[%clk 0:01:47]} 35. Nxg3 {[%clk 0:01:40]}  Rg4 {[%clk 0:01:47]} 36. Rg8+ {[%clk 0:01:38]}  Rg7 {[%clk 0:01:46]} 37. Rxg7+ {[%clk 0:01:38]}  Kxg7 {[%clk 0:01:47]} 38. Nf5+ {[%clk 0:01:37]}  Kg6 {[%clk 0:01:44]} 39. g3 {[%clk 0:01:36]}  Nf7 {[%clk 0:01:37]} 40. Kd4 {[%clk 0:01:34]}  Ng5 {[%clk 0:01:15]} 41. Kd3 {[%clk 0:01:20]}  Ne6 {[%clk 0:00:17]} 42. Ra7 {[%clk 0:01:15]}  Nc5+ {[%clk 0:00:15]} 43. Kd2 {[%clk 0:01:02]}  Nxe4+ {[%clk 0:00:15]} 44. Ke3 {[%clk 0:01:00]}  Kxf5 {[%clk 0:00:16]} 0-1


[Site "https://www.chess.com"]

[Event "Titled Tuesday Blitz December 06 Late 2022"]
[White "Dardha, Daniel"]
[Black "Mikhailov, Viacheslav"]
[WhiteFideId "240990"]
[BlackFideId "4187369"]
[WhiteElo "2528"]
[BlackElo "2381"]
[Result "1-0"]
[Round "03"]
[TimeControl "180+1"]
[Date "2022.12.06"]
[WhiteClock "0:00:14"]
[BlackClock "0:00:01"]

1. d4 {[%clk 0:03:00]}  Nf6 {[%clk 0:02:03]} 2. Bg5 {[%clk 0:03:00]}  g6 {[%clk 0:02:03]} 3. Bxf6 {[%clk 0:03:00]}  exf6 {[%clk 0:02:04]} 4. e3 {[%clk 0:03:01]}  Bg7 {[%clk 0:02:04]} 5. g3 {[%clk 0:02:59]}  O-O {[%clk 0:02:05]} 6. Bg2 {[%clk 0:03:00]}  d6 {[%clk 0:01:55]} 7. Nd2 {[%clk 0:02:59]}  c5 {[%clk 0:01:55]} 8. Ne2 {[%clk 0:02:58]}  Nc6 {[%clk 0:01:56]} 9. c3 {[%clk 0:02:57]}  f5 {[%clk 0:01:56]} 10. O-O {[%clk 0:02:57]}  Bd7 {[%clk 0:01:55]} 11. a3 {[%clk 0:02:57]}  Rc8 {[%clk 0:01:55]} 12. b4 {[%clk 0:02:57]}  b6 {[%clk 0:01:56]} 13. bxc5 {[%clk 0:02:54]}  dxc5 {[%clk 0:01:56]} 14. Nf4 {[%clk 0:02:53]}  Na5 {[%clk 0:01:51]} 15. Qe2 {[%clk 0:02:41]}  Re8 {[%clk 0:01:50]} 16. Qd3 {[%clk 0:02:37]}  Be6 {[%clk 0:01:41]} 17. Nxe6 {[%clk 0:02:37]}  Rxe6 {[%clk 0:01:40]} 18. a4 {[%clk 0:02:34]}  h5 {[%clk 0:01:37]} 19. Nf3 {[%clk 0:02:29]}  Nb3 {[%clk 0:01:27]} 20. Rab1 {[%clk 0:02:25]}  c4 {[%clk 0:01:24]} 21. Qc2 {[%clk 0:02:22]}  Qd7 {[%clk 0:01:22]} 22. Qa2 {[%clk 0:02:10]}  Bf6 {[%clk 0:00:59]} 23. Rfd1 {[%clk 0:02:01]}  h4 {[%clk 0:00:57]} 24. Nd2 {[%clk 0:01:59]}  hxg3 {[%clk 0:00:56]} 25. hxg3 {[%clk 0:01:59]}  Nxd2 {[%clk 0:00:49]} 26. Rxd2 {[%clk 0:02:00]}  Kg7 {[%clk 0:00:45]} 27. Rb4 {[%clk 0:01:57]}  f4 {[%clk 0:00:38]} 28. gxf4 {[%clk 0:01:54]}  Rh8 {[%clk 0:00:35]} 29. Qxc4 {[%clk 0:01:53]}  Re7 {[%clk 0:00:35]} 30. Qc6 {[%clk 0:01:50]}  Qg4 {[%clk 0:00:34]} 31. Qf3 {[%clk 0:01:50]}  Qh4 {[%clk 0:00:34]} 32. Kf1 {[%clk 0:01:47]}  Rc7 {[%clk 0:00:28]} 33. Rc2 {[%clk 0:01:34]}  Rhc8 {[%clk 0:00:28]} 34. c4 {[%clk 0:01:33]}  Be7 {[%clk 0:00:26]} 35. Rb1 {[%clk 0:01:27]}  Rxc4 {[%clk 0:00:26]} 36. Rxc4 {[%clk 0:01:28]}  Rxc4 {[%clk 0:00:26]} 37. f5 {[%clk 0:01:27]}  g5 {[%clk 0:00:24]} 38. a5 {[%clk 0:01:19]}  bxa5 {[%clk 0:00:19]} 39. Qe4 {[%clk 0:00:46]}  Qxe4 {[%clk 0:00:19]} 40. Bxe4 {[%clk 0:00:47]}  a4 {[%clk 0:00:16]} 41. Rb7 {[%clk 0:00:46]}  a3 {[%clk 0:00:12]} 42. Rxa7 {[%clk 0:00:42]}  Bb4 {[%clk 0:00:11]} 43. Bd5 {[%clk 0:00:40]}  Rc1+ {[%clk 0:00:10]} 44. Kg2 {[%clk 0:00:40]}  Rc2 {[%clk 0:00:10]} 45. Rxf7+ {[%clk 0:00:39]}  Kh8 {[%clk 0:00:10]} 46. f6 {[%clk 0:00:35]}  Rc8 {[%clk 0:00:05]} 47. Rb7 {[%clk 0:00:29]}  Bd6 {[%clk 0:00:03]} 48. Ra7 {[%clk 0:00:23]}  Rd8 {[%clk 0:00:03]} 49. e4 {[%clk 0:00:20]}  Bb4 {[%clk 0:00:02]} 50. Kf3 {[%clk 0:00:20]}  g4+ {[%clk 0:00:01]} 51. Kxg4 {[%clk 0:00:17]}  Rf8 {[%clk 0:00:01]} 52. e5 {[%clk 0:00:16]}  Rd8 {[%clk 0:00:01]} 53. e6 {[%clk 0:00:13]}  Rxd5 {[%clk 0:00:01]} 54. e7 {[%clk 0:00:14]} 1-0


[Site "https://www.chess.com"]